bitfinex/quotes_ETHUSD_20240603
["timestamp","ask_amount","ask_price","bid_price","bid_amount"]
[1717418448082,0.56282793,3841.4,3839.4,2.81825037]
[1717418448364,0.56282793,3841.4,3839.6,2.758]
[1717418448576,0.29818979,3841.3,3839.7,3.37522061]
[1717418449193,0.56282793,3841.4,3839.7,3.37522061]
[1717418449964,2.41907,3841.5,3839.7,3.37522061]
[1717418450170,0.56286283,3841.4,3839.7,3.37522061]
[1717418452183,0.56286283,3841.4,3839.9,2.758]
[1717418453477,0.56286283,3841.4,3839.4,3.17220609]
[1717418453683,0.56286283,3841.4,3839.5,3.0]
[1717418453878,0.56286283,3841.4,3839.6,2.758]
[1717418454283,0.56286283,3841.3,3839.6,2.758]
[1717418454527,0.56286283,3841.3,3839.5,3.41420609]
[1717418454528,0.29819328,3841.2,3839.8,2.758]
[1717418455019,0.56286283,3841.1,3839.3,2.758]
[1717418455229,0.56286283,3841.1,3839.3,3.17220609]
[1717418455407,0.56286283,3841.1,3839.5,2.758]
[1717418455583,0.29819328,3841.2,3839.5,2.758]
[1717418455779,0.56286283,3841.1,3839.5,3.17220609]
[1717418456200,0.56286283,3841.1,3839.5,5.77666609]
[1717418456387,0.29819328,3841.2,3839.7,2.758]
[1717418456587,0.29819328,3841.2,3839.8,3.33566661]
[1717418457296,0.56285249,3841.4,3839.8,6.3541327]
[1717418457981,0.56278049,3841.4,3840.2,2.758]
[1717418458417,0.56278049,3841.4,3839.9,0.41420609]
[1717418458418,0.56278049,3841.4,3840.4,2.758]
[1717418458593,0.005,3841.5,3840.6,2.758]
[1717418458789,0.005,3841.5,3840.8,2.758]
[1717418459026,0.005,3841.5,3840.9,0.5758]
[1717418459230,0.005,3841.5,3840.9,5.78010873]
[1717418459526,0.005,3841.5,3841.0,0.04840664]
[1717418459710,0.005,3841.5,3841.1,2.758]
[1717418460725,0.005,3841.5,3840.7,2.758]
[1717418460908,0.005,3841.5,3840.4,2.758]
[1717418461096,0.005,3841.5,3839.8,3.18194661]
[1717418461297,0.005,3841.5,3839.9,0.56605466]
[1717418461536,0.005,3841.5,3839.5,0.41420609]
[1717418461682,2.1937,3841.4,3839.7,2.60433]
[1717418461889,0.56266795,3841.3,3839.7,2.60433]
[1717418462128,0.56266795,3841.3,3839.5,0.41420609]
[1717418462595,0.81129413,3841.1,3839.5,0.41420609]
[1717418462790,0.8072203,3841.0,3839.5,0.41420609]
[1717418462998,1.37396208,3840.9,3839.5,0.41420609]
[1717418463191,1.37396208,3840.8,3839.5,0.41420609]
[1717418463399,0.56266795,3840.7,3839.5,0.41420609]
[1717418463623,1.37396208,3840.7,3839.5,0.41420609]
[1717418463806,0.8072203,3840.6,3839.4,2.758]
[1717418464006,0.56266795,3840.6,3839.2,2.758]
[1717418464207,0.81129413,3840.9,3839.5,3.17220609]
[1717418464208,0.56266795,3840.8,3839.5,3.17220609]
[1717418464595,1.37396208,3840.8,3839.5,2.758]
[1717418465083,2.1937,3840.6,3839.2,2.758]
[1717418465289,0.91943416,3840.5,3839.2,2.758]
[1717418465491,0.91943416,3840.5,3839.3,0.05207435]
[1717418465733,0.91943416,3840.5,3838.7,2.60503]
[1717418465951,1.73072829,3840.5,3838.5,2.758]
[1717418466102,0.81129413,3840.3,3838.4,1.0295]
[1717418466423,2.13382831,3840.4,3837.6,9.58454973]
[1717418466424,0.81129413,3839.9,3837.6,12.19032973]
[1717418466624,1.07156139,3840.0,3837.6,12.19032973]
[1717418466625,0.81129413,3839.6,3837.6,2.60578]
[1717418466811,1.07156139,3839.8,3837.6,2.60578]
[1717418466812,1.37396208,3839.5,3837.6,2.60578]
[1717418467021,3.26526139,3839.7,3837.7,0.260578]
[1717418467022,0.81129413,3839.3,3837.7,0.260578]
[1717418467215,0.81129413,3839.0,3837.1,2.60606]
[1717418467527,0.81129413,3838.7,3836.5,9.35367575]
[1717418467691,0.81129413,3838.7,3836.6,1.042994]
[1717418467892,0.81129413,3838.1,3836.6,1.042994]
[1717418468208,0.81129413,3837.9,3835.4,2.486]
[1717418468399,0.81129413,3837.8,3835.5,0.05211782]
[1717418468630,0.81129413,3837.8,3836.2,2.486]
[1717418468835,1.07156139,3837.9,3836.2,2.486]
[1717418468836,0.81129413,3837.9,3836.2,2.486]
[1717418469126,0.81129413,3838.2,3836.3,2.758]
[1717418469433,0.81129413,3838.0,3836.5,2.758]
[1717418469622,0.81129413,3838.0,3836.1,2.60676]
[1717418469785,0.81129413,3838.0,3835.3,8.97813965]
[1717418469786,2.1937,3837.9,3836.0,1.043143]
[1717418469990,1.11179354,3837.8,3835.8,2.758]
[1717418470199,1.11179354,3837.8,3835.7,2.758]
[1717418470200,1.45719006,3837.8,3835.7,2.758]
[1717418470403,0.81129413,3837.6,3835.7,2.758]
[1717418470801,2.1937,3837.9,3836.3,2.758]
[1717418470994,2.1937,3837.9,3835.9,2.486]
[1717418470995,2.1937,3837.9,3836.7,2.758]
[1717418471307,0.81129413,3838.4,3837.0,2.758]
[1717418471495,2.1937,3838.6,3837.0,2.758]
[1717418471694,2.1937,3838.6,3837.3,2.758]
[1717418471890,2.1937,3838.6,3836.5,2.486]
[1717418471891,2.1937,3838.6,3837.5,5.36385]
[1717418472091,3.00499413,3839.2,3837.7,5.36369]
[1717418472336,3.00499413,3839.2,3837.9,2.758]
[1717418472513,0.81129413,3839.2,3838.0,5.3635]
[1717418472715,1.62962066,3840.0,3838.0,5.3635]
[1717418472716,0.81129413,3839.8,3838.0,5.3635]
[1717418472917,0.81129413,3839.8,3838.2,2.758]
[1717418473143,0.81129413,3839.9,3838.3,0.05208578]
[1717418473327,0.81129413,3839.9,3838.2,2.758]
[1717418474041,0.81129413,3840.0,3838.2,2.758]
[1717418474206,0.81129413,3839.9,3838.3,0.619985]
[1717418474418,2.1937,3839.8,3838.3,0.619985]
[1717418474621,2.1937,3839.8,3836.8,2.60627]
[1717418474622,2.1937,3839.7,3836.8,2.60627]
[1717418474971,0.81129413,3839.1,3837.3,2.65803062]
[1717418475234,1.07156139,3839.3,3837.3,2.65803062]
[1717418475235,0.18828555,3839.0,3837.4,0.26580306]
[1717418475536,1.07156139,3839.3,3837.4,0.26580306]
[1717418475537,0.81129413,3839.3,3837.7,2.758]
[1717418475845,0.81129413,3839.4,3837.8,5.39712203]
[1717418476010,0.81129413,3839.6,3837.8,5.36365]
[1717418476213,3.00499413,3839.7,3837.8,5.36365]
[1717418476914,2.1937,3839.7,3837.8,5.36365]
[1717418477110,1.39564866,3840.0,3838.2,2.758]
[1717418477111,0.81129413,3840.0,3838.2,2.758]
[1717418477329,0.81129413,3840.1,3838.5,2.758]
[1717418477527,2.16931135,3840.5,3838.5,2.758]
[1717418477732,0.81129413,3840.5,3838.5,2.758]
[1717418477904,0.81129413,3840.5,3838.8,2.758]
[1717418478099,0.32408727,3840.5,3838.9,3.35158904]
[1717418478351,0.81129413,3840.7,3839.1,2.758]
[1717418478641,2.1937,3841.0,3839.3,2.758]
[1717418478642,3.00499413,3841.0,3839.3,2.758]
[1717418478799,2.1937,3841.0,3839.3,2.758]
[1717418479613,3.00499413,3841.0,3839.3,2.758]
[1717418479945,0.40765555,3840.9,3838.9,3.54151182]
[1717418480100,1.21894968,3840.9,3839.0,3.0]
[1717418480301,1.21894968,3840.9,3838.8,3.0]
[1717418480302,0.81129413,3840.8,3838.8,3.0]
[1717418480644,0.81129413,3840.8,3838.2,2.4709]
[1717418480645,0.81129413,3840.4,3838.3,2.60529]
[1717418480799,2.1937,3840.2,3838.4,3.0]
[1717418481001,0.30049941,3840.1,3838.4,3.860529]
[1717418481443,1.11179354,3840.1,3838.4,3.860529]
[1717418481966,0.81129413,3840.0,3838.4,3.860529]
[1717418482145,0.81129413,3840.0,3837.9,3.0]
[1717418482527,0.81129413,3839.8,3837.8,2.6056]
[1717418482728,0.81129413,3839.6,3837.8,2.6056]
[1717418482932,0.81129413,3839.5,3837.8,5.3636]
[1717418483660,1.07156139,3839.7,3837.8,5.3636]
[1717418483661,0.81129413,3839.6,3837.8,5.3636]
[1717418483821,0.18828555,3839.5,3837.9,0.53636]
[1717418484004,0.18828555,3839.5,3837.9,3.53636]
[1717418484550,0.18828555,3839.5,3837.9,0.53636]
[1717418484875,0.99957968,3839.5,3837.9,0.53636]
[1717418485007,3.00499413,3839.4,3837.6,2.758]
[1717418485203,3.00499413,3839.4,3837.4,2.758]
[1717418485518,0.81129413,3839.3,3837.4,2.758]
[1717418485739,0.81129413,3839.2,3837.4,2.758]
[1717418485943,0.40765555,3839.1,3836.8,2.60627]
[1717418486268,0.40765555,3839.1,3836.2,2.3046]
[1717418486269,2.1937,3838.9,3836.4,2.758]
[1717418486495,0.81129413,3838.6,3836.4,3.801018]
[1717418486626,0.99957968,3838.5,3836.6,2.758]
[1717418486826,0.18828555,3838.5,3836.6,2.758]
[1717418487290,0.18828555,3838.5,3836.5,0.8712228]
[1717418487424,2.1937,3838.4,3836.3,2.60661]
[1717418487629,2.1937,3838.4,3835.6,4.7975]
[1717418487882,2.1937,3838.4,3836.0,2.60681]
[1717418487883,0.81129413,3838.3,3836.0,2.60681]
[1717418488230,3.00499413,3838.4,3836.1,2.758]
[1717418488978,0.81129413,3838.3,3835.6,4.7975]
[1717418489133,2.6054,3838.2,3835.7,2.47152681]
[1717418489335,1.37464729,3838.1,3835.8,2.758]
[1717418489529,2.37616404,3838.0,3835.8,2.758]
[1717418489932,2.9395172,3838.0,3835.8,2.758]
[1717418490271,3.41870102,3837.9,3835.9,0.62727468]
[1717418490477,2.85534786,3837.9,3835.9,0.62727468]
[1717418490836,4.42039582,3837.9,3835.9,0.62727468]
[1717418491180,2.1937,3837.7,3835.7,2.47152681]
[1717418491410,4.32218657,3837.7,3835.3,2.6073]
[1717418491542,4.32218657,3837.7,3835.6,2.758]
[1717418491543,2.12848657,3837.6,3835.6,2.758]
[1717418491741,2.12848657,3837.5,3835.8,2.758]
[1717418491942,2.12848657,3837.5,3835.7,2.64908605]
[1717418491943,2.1937,3837.7,3836.0,2.758]
[1717418492252,1.56504796,3838.2,3836.6,2.758]
[1717418492439,2.1937,3838.3,3836.7,0.05210723]
[1717418492789,2.1937,3838.3,3836.8,5.95805035]
[1717418493096,2.1937,3838.3,3836.8,5.90594372]
[1717418494498,2.1937,3838.3,3836.9,3.0]
[1717418495653,2.1937,3838.3,3836.8,0.54166372]
[1717418496202,3.75874796,3838.3,3836.8,0.54166372]
[1717418496386,0.9391678,3838.2,3836.8,0.54166372]
[1717418496704,2.50421576,3838.2,3836.0,2.758]
[1717418496870,1.56504796,3837.9,3835.9,5.45813861]
[1717418497075,2.12834096,3837.8,3835.9,3.14763861]
[1717418497298,2.34117506,3837.7,3835.9,2.60693]
[1717418497606,0.2128341,3837.7,3835.9,2.60693]
[1717418497774,0.2128341,3837.7,3836.0,0.04359958]
[1717418498156,1.56504796,3837.8,3836.3,2.758]
[1717418498578,1.56504796,3838.0,3836.4,3.0]
[1717418498934,1.56504796,3838.1,3836.4,3.0]
[1717418499075,1.56504796,3838.1,3836.6,2.60646]
[1717418499278,2.12837223,3838.2,3836.7,6.594446]
[1717418499476,2.1937,3838.3,3836.8,2.60629]
[1717418499672,2.1937,3838.3,3836.9,3.0]
[1717418502820,2.1937,3838.3,3836.6,2.758]
[1717418503119,2.1937,3838.3,3836.7,3.836458]
[1717418503120,0.3758748,3838.2,3836.7,3.836458]
[1717418503281,0.3758748,3838.2,3836.7,0.836458]
[1717418503494,2.50422298,3838.2,3836.7,0.836458]
[1717418504627,0.3758748,3838.2,3836.7,0.836458]
[1717418504846,0.56328824,3838.2,3836.7,3.442818]
[1717418505130,2.1937,3838.3,3836.8,3.0]
[1717418505632,4.32167829,3838.3,3836.4,5.758]
[1717418505799,0.99545662,3838.2,3836.5,1.086234]
[1717418506008,2.56014612,3838.2,3836.5,1.086234]
[1717418506945,0.99545662,3838.2,3836.5,1.086234]
[1717418507087,0.43216783,3838.2,3836.5,1.086234]
[1717418507285,2.56014627,3838.2,3836.5,1.086234]
[1717418507633,1.5646895,3837.9,3835.9,5.3649]
[1717418507987,2.12797844,3837.8,3835.9,5.3649]
[1717418508328,2.12797844,3837.7,3835.9,5.3649]
[1717418508553,0.26710171,3837.6,3836.0,0.53649]
[1717418508750,0.26710171,3837.6,3835.9,2.6069]
[1717418509036,0.26710171,3837.6,3836.0,3.0]
[1717418509577,2.39508015,3837.6,3836.0,3.0]
[1717418509709,2.12797844,3837.6,3836.0,3.0]
[1717418510037,4.32167844,3837.5,3836.0,3.0]
[1717418510187,3.7583895,3837.5,3836.0,3.0]
[1717418510389,1.5646895,3837.3,3836.0,3.0]
[1717418510587,1.5646895,3837.3,3836.1,0.56069]
[1717418510788,2.12805419,3837.2,3836.1,0.56069]
[1717418510989,1.5646895,3837.2,3836.1,0.56069]
[1717418511207,1.5646895,3837.3,3836.3,2.60666]
[1717418511407,1.5646895,3837.6,3836.6,2.60647]
[1717418511609,3.48037876,3838.1,3836.6,2.60647]
[1717418511610,1.5646895,3837.7,3836.6,2.60647]
[1717418511823,1.5646895,3837.9,3836.6,2.60647]
[1717418512544,1.5646895,3837.7,3836.6,2.60647]
[1717418514044,1.5646895,3837.9,3836.9,2.60625]
[1717418514199,1.5646895,3837.8,3837.1,2.6061]
[1717418514399,1.5646895,3837.9,3837.1,2.6061]
[1717418514950,1.5646895,3838.0,3837.4,2.60587]
[1717418515252,1.5646895,3838.0,3837.0,5.624765]
[1717418515396,1.5646895,3837.9,3837.2,2.60604]
[1717418515752,1.56454508,3838.0,3837.2,2.60604]
[1717418516046,1.56454508,3838.0,3837.1,0.5624765]
[1717418516352,0.81129413,3838.5,3837.0,0.260625]
[1717418516353,2.12778183,3837.9,3837.0,0.260625]
[1717418516532,2.12778183,3837.8,3837.1,2.60612]
[1717418516850,1.56454508,3837.8,3837.1,2.60612]
[1717418517149,1.56454508,3837.8,3837.0,0.260625]
[1717418517150,1.56454508,3837.9,3837.0,0.260625]
[1717418517642,0.5430387,3838.2,3836.8,3.0]
[1717418517643,2.12779798,3837.8,3836.8,3.0]
[1717418517849,1.56454508,3837.8,3836.8,3.0]
[1717418518550,1.56454508,3837.7,3836.8,3.0]
[1717418518699,1.56454508,3837.7,3836.7,2.60634]
[1717418519052,0.5632529,3838.1,3836.7,2.60634]
[1717418519053,2.12779798,3837.6,3836.7,2.60634]
[1717418519250,1.56454508,3837.7,3836.7,3.2235075]
[1717418519648,1.56454508,3837.7,3836.7,2.60634]
[1717418520045,2.12784668,3837.6,3836.7,2.60634]
[1717418520345,1.56454508,3837.6,3836.4,3.565335]
[1717418520545,1.56454508,3837.6,3836.4,3.0]
[1717418520711,2.12784668,3837.5,3836.4,3.0]
[1717418520916,1.56454508,3837.3,3836.4,3.0]
[1717418521128,1.56486566,3837.3,3836.4,3.0]
[1717418521350,2.12821729,3837.2,3836.4,3.0]
[1717418521563,1.56486566,3837.2,3836.4,3.0]
[1717418521703,0.21282173,3837.1,3835.9,2.60689]
[1717418521901,1.56486566,3837.0,3836.0,3.0]
[1717418522242,1.56486566,3837.0,3835.9,3.0]
[1717418522428,1.56486566,3837.1,3835.9,3.0]
[1717418522633,1.56486566,3837.1,3836.0,0.560699]
[1717418523229,1.56486566,3837.0,3836.0,0.560699]
[1717418523749,2.10790436,3837.0,3835.4,2.60724]
[1717418524066,2.10790436,3836.8,3835.4,2.60724]
[1717418524202,2.67129497,3836.7,3835.4,2.60724]
[1717418524397,1.10642931,3836.6,3835.4,2.60724]
[1717418524662,2.10790436,3836.6,3835.5,0.509324]
[1717418525036,2.67129497,3836.6,3835.3,5.60733]
[1717418525237,0.5430387,3836.4,3835.5,2.60721]
[1717418525585,0.5430387,3836.5,3835.6,3.0]
[1717418526328,0.5430387,3836.4,3835.6,3.0]
[1717418526717,0.5430387,3836.4,3835.2,3.0]
[1717418526923,0.5430387,3836.1,3835.2,1.1842063]
[1717418527387,0.5430387,3836.0,3835.2,1.1842063]
[1717418528037,0.5430387,3836.0,3835.2,4.1842063]
[1717418528533,0.5430387,3836.0,3835.2,3.0]
[1717418529007,0.5430387,3835.8,3835.2,3.0]
[1717418529290,0.5430387,3835.8,3834.9,2.6076]
[1717418529507,0.5430387,3835.8,3835.0,3.0]
[1717418529645,1.37482036,3836.0,3835.0,3.0]
[1717418529646,0.5430387,3835.9,3835.0,3.0]
[1717418529844,0.81129413,3836.0,3835.1,0.56076]
[1717418529845,0.5430387,3835.8,3835.1,0.56076]
[1717418530052,0.5430387,3835.7,3835.0,3.0]
[1717418530446,0.5430387,3835.6,3835.0,3.0]
[1717418530647,0.5430387,3835.6,3834.6,3.0]
[1717418530884,2.63690064,3836.0,3834.6,3.0]
[1717418530885,0.5430387,3835.5,3834.6,3.0]
[1717418531386,0.5430387,3835.4,3834.1,2.60812]
[1717418531696,0.5430387,3835.3,3834.1,2.60812]
[1717418531984,0.5430387,3835.3,3833.8,2.486]
[1717418531985,0.5430387,3835.2,3834.3,2.608]
[1717418532535,0.81129413,3835.4,3834.3,2.608]
[1717418532536,0.5430387,3835.4,3834.3,2.608]
[1717418533036,0.5430387,3835.3,3834.4,3.0]
[1717418533449,0.5430387,3835.4,3834.4,3.0]
[1717418533640,0.13543328,3835.3,3833.9,2.60827]
[1717418533838,0.5430387,3835.2,3833.5,3.01707352]
[1717418534166,2.7367387,3835.0,3833.7,0.811294]
[1717418534337,0.5430387,3834.9,3833.7,0.811294]
[1717418534537,0.5430387,3834.9,3833.8,0.38283675]
[1717418534962,0.5430387,3834.8,3833.8,0.38283675]
[1717418535157,0.5430387,3834.8,3833.5,3.01707352]
[1717418535383,0.5430387,3834.7,3833.5,2.60855]
[1717418535605,0.5430387,3834.8,3833.5,2.60855]
[1717418535797,2.1937,3834.7,3833.1,3.652709]
[1717418536042,0.27367387,3834.6,3833.2,0.40613086]
[1717418536217,2.90681315,3834.7,3833.3,2.60868]
[1717418536424,2.36377445,3834.7,3833.3,2.60868]
[1717418536588,2.36377445,3834.7,3833.2,0.40613086]
[1717418536938,2.90681315,3834.7,3832.9,0.40859955]
[1717418537091,0.5430387,3834.6,3832.9,0.40859955]
[1717418537286,0.56382177,3834.6,3832.9,0.40859955]
[1717418537507,2.67286014,3834.6,3832.8,3.65299]
[1717418537727,2.1937,3834.4,3832.8,1.044]
[1717418537938,2.1937,3834.4,3832.1,1.863]
[1717418538098,2.10903837,3834.1,3832.1,1.863]
[1717418538303,0.5430387,3834.0,3832.5,1.863]
[1717418538508,1.56635042,3834.3,3832.9,1.863]
[1717418538688,2.7367387,3834.4,3833.0,0.1863]
[1717418538689,2.13023222,3834.2,3833.0,0.1863]
[1717418538938,2.1937,3834.4,3833.0,0.1863]
[1717418538939,2.1937,3834.4,3833.0,2.79518]
[1717418539234,0.71311315,3834.7,3833.0,2.79518]
[1717418539235,1.56635042,3834.6,3833.2,2.60873]
[1717418539451,0.17007445,3834.7,3833.5,1.863]
[1717418539606,0.17007445,3834.7,3833.6,0.747163]
[1717418540150,0.17007445,3834.7,3833.6,3.747163]
[1717418540306,0.17007445,3834.7,3833.6,0.747163]
[1717418541617,0.17007445,3834.7,3833.2,3.0]
[1717418541820,0.17007445,3834.7,3833.1,3.0]
[1717418542227,0.17007445,3834.7,3833.2,2.60878]
[1717418542470,0.17007445,3834.7,3833.3,3.0]
[1717418542770,2.1937,3834.9,3833.4,2.60864]
[1717418542972,2.1937,3834.9,3833.5,3.836664]
[1717418543386,12.50017,3835.6,3833.5,3.836664]
[1717418543387,1.56635042,3835.4,3834.3,2.60797]
[1717418543538,1.56635042,3835.6,3834.3,2.60797]
[1717418543733,2.1937,3836.0,3834.3,2.60797]
[1717418543734,1.56635042,3835.7,3834.3,2.60797]
[1717418544064,1.56635042,3835.9,3833.9,5.758]
[1717418544246,2.12999169,3835.9,3833.9,5.758]
[1717418544449,0.43236917,3835.8,3834.1,2.60817]
[1717418544669,0.43236917,3835.8,3834.3,2.608]
[1717418545237,0.43236917,3835.8,3834.2,3.0]
[1717418545550,1.56635042,3835.6,3833.8,3.0]
[1717418545767,1.56635042,3835.4,3833.5,2.60857]
[1717418545976,2.12998129,3835.3,3833.6,3.0]
[1717418546183,2.12998129,3835.3,3833.7,2.60838]
[1717418546351,0.56363087,3835.3,3833.8,3.0]
[1717418546547,0.43236813,3835.2,3833.9,0.860838]
[1717418547819,0.43236813,3835.2,3834.2,2.60808]
[1717418548953,0.43236813,3835.2,3833.9,3.618838]
[1717418548954,0.43236813,3835.2,3833.9,0.860838]
[1717418549290,1.99814307,3835.2,3833.9,0.860838]
[1717418549486,1.56577494,3835.0,3833.9,0.860838]
[1717418549859,1.56577494,3835.1,3833.9,0.860838]
[1717418550201,1.76558925,3835.0,3833.8,3.0]
[1717418550482,1.56577494,3834.8,3833.8,3.0]
[1717418551286,1.56577494,3834.6,3833.4,3.0]
[1717418551488,2.12947265,3834.5,3833.4,3.0]
[1717418551644,1.56577494,3834.5,3833.4,3.0]
[1717418551847,1.56577494,3834.4,3833.4,3.0]
[1717418552250,1.56577494,3834.3,3833.4,3.0]
[1717418552450,0.15657749,3834.5,3833.4,3.0]
[1717418552451,2.12947265,3834.2,3833.4,3.0]
[1717418552697,1.56577494,3834.2,3833.4,3.0]
[1717418552997,1.56577494,3834.3,3833.4,3.0]
[1717418554180,1.56577494,3834.3,3833.5,2.66068071]
[1717418554379,1.56577494,3834.6,3833.8,2.60834]
[1717418554761,1.56577494,3834.7,3833.8,2.60834]
[1717418555408,1.56577494,3834.8,3834.1,2.60813]
[1717418556160,1.56577494,3834.9,3834.1,2.60813]
[1717418556474,1.56577494,3834.7,3833.9,3.0]
[1717418556780,2.12949878,3834.7,3833.8,3.0]
[1717418556990,0.15657749,3834.9,3833.8,3.0]
[1717418556991,2.12949878,3834.6,3833.8,3.0]
[1717418557327,1.56580793,3834.6,3833.8,3.0]
[1717418557500,1.56580793,3834.5,3833.8,3.0]
[1717418557654,1.56580793,3834.5,3833.9,2.60828]
[1717418557851,1.56580793,3834.3,3834.0,3.0]
[1717418558052,1.56580793,3834.3,3833.8,3.0]
[1717418558286,1.56580793,3834.3,3833.6,3.0]
[1717418558453,2.12949878,3834.3,3833.6,3.0]
[1717418558660,0.56369085,3834.2,3833.6,3.6169439]
[1717418559161,0.56369085,3834.2,3833.7,2.60843]
[1717418559495,1.56580793,3834.4,3833.9,2.6083]
[1717418559697,0.56370168,3834.3,3833.9,2.6083]
[1717418559901,1.56580793,3834.6,3834.1,2.60816]
[1717418560122,1.56580793,3834.6,3834.2,3.0]
[1717418560478,1.56580793,3834.7,3834.3,2.60801]
[1717418560663,0.56364641,3834.6,3834.4,3.0]
[1717418560862,1.56580793,3834.7,3834.4,3.0]
[1717418561127,1.56580793,3834.7,3834.5,0.560801]
[1717418561323,1.56580793,3834.7,3834.3,3.0]
[1717418562293,0.56364773,3834.6,3834.3,3.0]
[1717418562488,1.56580793,3834.7,3834.3,3.0]
[1717418562715,0.56364052,3834.6,3834.3,3.0]
[1717418563039,1.56580793,3834.6,3834.3,3.0]
[1717418563242,2.12946348,3834.5,3833.9,3.0]
[1717418563541,0.5430387,3835.5,3834.0,2.6082]
[1717418563542,2.12946348,3834.4,3834.0,2.6082]
[1717418563827,0.56365555,3834.3,3834.0,2.6082]
[1717418564038,1.56580793,3834.4,3834.1,3.0]
[1717418564400,1.56580793,3834.4,3834.2,2.6602546]
[1717418564732,1.56580793,3834.6,3834.3,3.0]
[1717418564891,1.56580793,3834.8,3834.3,3.74701]
[1717418565092,0.56363473,3834.7,3834.4,2.60795]
[1717418565290,0.56363497,3834.7,3834.5,3.0]
[1717418565627,1.56580793,3834.9,3834.5,3.0]
[1717418565804,0.56362431,3834.8,3834.5,3.0]
[1717418566000,0.56362431,3834.7,3834.5,3.0]
[1717418566238,1.56580793,3834.8,3834.5,3.0]
[1717418566435,0.56364882,3834.7,3834.5,3.0]
[1717418566634,1.56580793,3834.9,3834.5,3.0]
[1717418566798,0.56362219,3834.8,3834.5,3.0]
[1717418566997,1.56580793,3834.8,3834.5,3.0]
[1717418567505,0.56363527,3834.7,3834.5,3.0]
[1717418568035,2.1294432,3834.7,3834.5,3.0]
[1717418568208,1.56580793,3834.7,3834.1,3.0]
[1717418568535,0.56365932,3834.6,3834.1,3.83685074]
[1717418568760,0.56365932,3834.5,3834.1,3.0]
[1717418568910,2.12946725,3834.4,3834.1,3.0]
[1717418569215,0.5430387,3834.9,3834.1,3.0]
[1717418569417,1.56587028,3834.5,3834.1,3.0]
[1717418569631,0.5637133,3834.4,3834.1,3.0]
[1717418569818,1.56587028,3834.5,3834.1,3.0]
[1717418570153,2.12956816,3834.4,3834.1,3.0]
[1717418570454,0.56370026,3834.3,3834.1,3.0]
[1717418570610,1.56587028,3834.4,3834.1,3.0]
[1717418571457,0.56370873,3834.3,3834.1,3.0]
[1717418571659,1.56587028,3834.4,3834.1,3.0]
[1717418572153,0.56370891,3834.3,3834.1,3.0]
[1717418572829,1.56587028,3834.4,3834.1,3.0]
[1717418573448,1.56587028,3834.4,3833.8,1.862]
[1717418573950,0.56370865,3834.3,3833.8,1.862]
[1717418574450,2.10890898,3834.4,3833.8,1.862]
[1717418574657,0.56372019,3834.3,3833.8,1.862]
[1717418575344,0.56372019,3834.3,3833.7,3.0]
[1717418575659,0.56372019,3834.2,3833.7,3.0]
[1717418575855,1.10675889,3834.2,3833.7,3.0]
[1717418576348,0.5430387,3834.1,3833.7,3.0]
[1717418576521,0.5430387,3834.1,3833.8,2.60836]
[1717418576722,0.5430387,3834.2,3833.9,3.0]
[1717418576965,1.1067846,3834.2,3833.4,2.60861]
[1717418577163,0.5430387,3834.1,3833.4,2.60861]
[1717418577479,0.5430387,3833.9,3833.4,2.60861]
[1717418577815,0.5430387,3833.8,3833.4,2.60861]
[1717418578133,0.5430387,3833.8,3833.5,3.0]
[1717418578337,0.5430387,3833.7,3833.1,3.0]
[1717418578563,0.5430387,3833.6,3833.1,3.0]
[1717418579741,0.5430387,3833.5,3833.1,3.0]
[1717418580521,0.56383124,3833.6,3833.1,3.0]
[1717418580522,0.5430387,3833.4,3833.1,3.0]
[1717418581257,0.5430387,3833.5,3833.1,3.0]
[1717418582131,0.5430387,3833.5,3832.8,1.862]
[1717418582531,0.5430387,3833.4,3832.8,1.862]
[1717418582914,0.5430387,3833.3,3832.7,3.0]
[1717418583114,0.5430387,3833.3,3832.6,2.60914]
[1717418583360,0.5430387,3833.2,3832.6,2.60914]
[1717418583617,0.5430387,3833.0,3832.6,2.60914]
[1717418584963,0.5430387,3833.2,3832.6,2.60914]
[1717418585474,0.5430387,3833.3,3832.9,2.60897]
[1717418585759,0.5430387,3833.4,3833.1,2.60885]
[1717418585948,0.5430387,3833.7,3833.1,2.60885]
[1717418588453,0.5430387,3833.6,3833.1,2.60885]
[1717418588851,0.5430387,3833.6,3832.9,1.862]
[1717418589033,0.5430387,3833.6,3832.9,2.609109]
[1717418589236,0.5430387,3833.6,3833.0,3.0]
[1717418589435,0.81129413,3833.8,3833.0,3.0]
[1717418589955,0.81129413,3833.8,3833.0,5.60885]
[1717418590169,0.81129413,3833.9,3833.0,5.60885]
[1717418590332,0.54610652,3833.7,3833.1,1.0975959]
[1717418590538,0.54610652,3833.8,3833.1,1.0975959]
[1717418590740,0.54610652,3833.7,3833.0,3.0]
[1717418590940,0.54610652,3833.6,3832.7,3.0]
[1717418591120,0.54610652,3833.5,3832.7,3.0]
[1717418591324,0.54610652,3833.4,3832.1,2.60948]
[1717418591532,0.54610652,3833.1,3832.1,2.60948]
[1717418592323,0.54610652,3833.0,3832.1,2.60948]
[1717418592550,0.54610652,3832.9,3832.1,2.60948]
[1717418592737,0.54610652,3832.9,3832.2,3.0]
[1717418592937,0.81129413,3833.1,3832.2,3.0]
[1717418592938,0.54610652,3833.0,3832.2,3.0]
[1717418593159,0.82451373,3833.0,3832.2,3.0]
[1717418593327,0.54610652,3832.9,3832.2,3.0]
[1717418593766,0.54610652,3832.9,3832.0,5.60957]
[1717418593971,0.82451373,3833.0,3832.0,5.60957]
[1717418594138,0.54610652,3833.0,3832.2,1.862]
[1717418594474,0.54610652,3833.1,3832.2,4.862]
[1717418594963,0.54610652,3833.2,3832.2,1.862]
[1717418596473,0.54610652,3833.1,3832.2,1.862]
[1717418596795,0.17125107,3833.0,3832.0,2.60957]
[1717418597066,0.71735759,3833.0,3832.0,2.60957]
[1717418597880,0.54610652,3832.9,3832.1,3.0]